[Event "Titled Tuesday Blitz August 10 2021"]
[White "Siva Mahadevan"]
[Black "Le, Tuan Minh"]
[WhiteFideId "25043153"]
[BlackFideId "12401153"]
[WhiteElo "2203"]
[BlackElo "2450"]
[Result "0-1"]
[Round "11"]
[TimeControl "180+1"]
[Date "2021.08.10"]
[WhiteClock "0:00:18"]
[BlackClock "0:00:05"]

1. e4 {[%clk 0:03:00]}  c5 {[%clk 0:02:35]} 2. Nf3 {[%clk 0:02:59]}  Nf6 {[%clk 0:02:35]} 3. e5 {[%clk 0:02:57]}  Nd5 {[%clk 0:02:23]} 4. d4 {[%clk 0:02:57]}  cxd4 {[%clk 0:02:22]} 5. Qxd4 {[%clk 0:02:55]}  e6 {[%clk 0:02:22]} 6. Bd3 {[%clk 0:02:51]}  Nc6 {[%clk 0:02:23]} 7. Qe4 {[%clk 0:02:49]}  f5 {[%clk 0:02:23]} 8. Qe2 {[%clk 0:02:49]}  Nde7 {[%clk 0:02:12]} 9. Na3 {[%clk 0:02:46]}  Ng6 {[%clk 0:02:07]} 10. Nc4 {[%clk 0:02:37]}  b5 {[%clk 0:01:53]} 11. Nd6+ {[%clk 0:02:37]}  Bxd6 {[%clk 0:01:53]} 12. exd6 {[%clk 0:02:38]}  O-O {[%clk 0:01:54]} 13. Bxb5 {[%clk 0:02:34]}  Bb7 {[%clk 0:01:19]} 14. O-O {[%clk 0:02:32]}  Rc8 {[%clk 0:01:18]} 15. Bg5 {[%clk 0:02:28]}  Qb6 {[%clk 0:01:05]} 16. Be3 {[%clk 0:02:28]}  Qa5 {[%clk 0:01:05]} 17. a4 {[%clk 0:02:19]}  a6 {[%clk 0:01:04]} 18. Bd3 {[%clk 0:02:19]}  Nce5 {[%clk 0:00:45]} 19. Nxe5 {[%clk 0:02:17]}  Qxe5 {[%clk 0:00:46]} 20. f4 {[%clk 0:01:57]}  Qxd6 {[%clk 0:00:45]} 21. Rad1 {[%clk 0:01:57]}  Qc6 {[%clk 0:00:45]} 22. b3 {[%clk 0:01:58]}  Rf7 {[%clk 0:00:30]} 23. Qf2 {[%clk 0:01:50]}  Kh8 {[%clk 0:00:27]} 24. Rd2 {[%clk 0:01:48]}  Ne7 {[%clk 0:00:25]} 25. Bd4 {[%clk 0:01:47]}  Nd5 {[%clk 0:00:25]} 26. Qg3 {[%clk 0:01:45]}  Nf6 {[%clk 0:00:25]} 27. Re2 {[%clk 0:01:36]}  Qd6 {[%clk 0:00:23]} 28. Be5 {[%clk 0:01:35]}  Qc5+ {[%clk 0:00:24]} 29. Kh1 {[%clk 0:01:36]}  Ne4 {[%clk 0:00:24]} 30. Bxe4 {[%clk 0:01:19]}  Bxe4 {[%clk 0:00:24]} 31. c4 {[%clk 0:01:19]}  d6 {[%clk 0:00:22]} 32. Ba1 {[%clk 0:01:18]}  d5 {[%clk 0:00:19]} 33. cxd5 {[%clk 0:01:05]}  Qxd5 {[%clk 0:00:20]} 34. Be5 {[%clk 0:01:06]}  Rd7 {[%clk 0:00:08]} 35. h4 {[%clk 0:00:52]}  Qd3 {[%clk 0:00:08]} 36. Qf2 {[%clk 0:00:28]}  h6 {[%clk 0:00:06]} 37. Re3 {[%clk 0:00:27]}  Qd5 {[%clk 0:00:06]} 38. Qg3 {[%clk 0:00:25]}  Rc2 {[%clk 0:00:04]} 39. Rf2 {[%clk 0:00:19]}  Qd1+ {[%clk 0:00:04]} 40. Kh2 {[%clk 0:00:19]}  Rc1 {[%clk 0:00:04]} 41. Qg6 {[%clk 0:00:17]}  Qh1+ {[%clk 0:00:03]} 42. Kg3 {[%clk 0:00:18]}  Rg1 {[%clk 0:00:03]} 43. Qxh6+ {[%clk 0:00:17]}  Kg8 {[%clk 0:00:03]} 44. Qxe6+ {[%clk 0:00:18]}  Kh7 {[%clk 0:00:04]} 45. Rxe4 {[%clk 0:00:18]}  Rd3+ {[%clk 0:00:05]} 0-1


[Site "https://www.chess.com"]

[Event "Titled Tuesday Blitz August 10 2021"]
[White "Solon, Nathan"]
[Black "Wagner, Dennis"]
[WhiteFideId "2017229"]
[BlackFideId "24650684"]
[WhiteElo "2661"]
[BlackElo "2355"]
[Result "1-0"]
[Round "11"]
[TimeControl "180+1"]
[Date "2021.08.10"]
[WhiteClock "0:00:20"]
[BlackClock "0:00:16"]

1. d4 {[%clk 0:03:00]}  Nf6 {[%clk 0:02:59]} 2. c4 {[%clk 0:03:00]}  e6 {[%clk 0:02:59]} 3. g3 {[%clk 0:03:01]}  c5 {[%clk 0:02:53]} 4. d5 {[%clk 0:03:01]}  exd5 {[%clk 0:02:53]} 5. cxd5 {[%clk 0:03:02]}  d6 {[%clk 0:02:53]} 6. Nc3 {[%clk 0:03:02]}  g6 {[%clk 0:02:54]} 7. Bg2 {[%clk 0:03:02]}  Bg7 {[%clk 0:02:54]} 8. Nf3 {[%clk 0:03:03]}  O-O {[%clk 0:02:55]} 9. O-O {[%clk 0:03:03]}  Re8 {[%clk 0:02:55]} 10. Bf4 {[%clk 0:03:03]}  Nh5 {[%clk 0:02:54]} 11. Bg5 {[%clk 0:03:02]}  Qc7 {[%clk 0:02:45]} 12. Qd2 {[%clk 0:02:55]}  a6 {[%clk 0:02:45]} 13. a4 {[%clk 0:02:51]}  Nd7 {[%clk 0:02:44]} 14. g4 {[%clk 0:02:32]}  Nhf6 {[%clk 0:02:42]} 15. h3 {[%clk 0:02:32]}  Ne4 {[%clk 0:02:34]} 16. Nxe4 {[%clk 0:02:31]}  Rxe4 {[%clk 0:02:35]} 17. Qc2 {[%clk 0:02:21]}  Rb4 {[%clk 0:02:34]} 18. Ra2 {[%clk 0:02:17]}  Nf6 {[%clk 0:02:26]} 19. Bd2 {[%clk 0:02:12]}  Re4 {[%clk 0:01:07]} 20. g5 {[%clk 0:01:59]}  Bf5 {[%clk 0:01:07]} 21. gxf6 {[%clk 0:01:57]}  Bxf6 {[%clk 0:01:08]} 22. Bc3 {[%clk 0:01:42]}  Bxc3 {[%clk 0:00:34]} 23. Qxc3 {[%clk 0:01:42]}  Qd7 {[%clk 0:00:34]} 24. Kh2 {[%clk 0:01:40]}  Rxe2 {[%clk 0:00:34]} 25. Raa1 {[%clk 0:01:34]}  Rc2 {[%clk 0:00:29]} 26. Qf6 {[%clk 0:01:31]}  Qd8 {[%clk 0:00:27]} 27. Qxd8+ {[%clk 0:01:25]}  Rxd8 {[%clk 0:00:28]} 28. Nh4 {[%clk 0:01:15]}  Bd7 {[%clk 0:00:26]} 29. a5 {[%clk 0:01:14]}  Rxb2 {[%clk 0:00:25]} 30. Rab1 {[%clk 0:01:13]}  Rb5 {[%clk 0:00:24]} 31. Rfe1 {[%clk 0:01:10]}  Kf8 {[%clk 0:00:16]} 32. Bf1 {[%clk 0:01:10]}  Rxa5 {[%clk 0:00:12]} 33. Rxb7 {[%clk 0:01:10]}  Ra2 {[%clk 0:00:12]} 34. Kg3 {[%clk 0:01:06]}  a5 {[%clk 0:00:13]} 35. Nf3 {[%clk 0:01:01]}  a4 {[%clk 0:00:13]} 36. Ng5 {[%clk 0:00:58]}  h6 {[%clk 0:00:12]} 37. Ne4 {[%clk 0:00:56]}  Bf5 {[%clk 0:00:12]} 38. Nc3 {[%clk 0:00:47]}  Ra3 {[%clk 0:00:11]} 39. Re3 {[%clk 0:00:48]}  Rxc3 {[%clk 0:00:11]} 40. Rxc3 {[%clk 0:00:47]}  Ra8 {[%clk 0:00:11]} 41. Ra3 {[%clk 0:00:47]}  Kg7 {[%clk 0:00:10]} 42. Bb5 {[%clk 0:00:46]}  Kf6 {[%clk 0:00:11]} 43. Rxa4 {[%clk 0:00:45]}  Rc8 {[%clk 0:00:11]} 44. Bd7 {[%clk 0:00:43]}  Bxd7 {[%clk 0:00:10]} 45. Rxd7 {[%clk 0:00:42]}  Ke5 {[%clk 0:00:11]} 46. Rxf7 {[%clk 0:00:41]}  Kxd5 {[%clk 0:00:12]} 47. Rf6 {[%clk 0:00:39]}  c4 {[%clk 0:00:12]} 48. Ra5+ {[%clk 0:00:35]}  Ke4 {[%clk 0:00:12]} 49. Rxd6 {[%clk 0:00:34]}  c3 {[%clk 0:00:12]} 50. Ra1 {[%clk 0:00:32]}  c2 {[%clk 0:00:12]} 51. Rc1 {[%clk 0:00:32]}  Rc3+ {[%clk 0:00:13]} 52. Kg2 {[%clk 0:00:30]}  g5 {[%clk 0:00:11]} 53. Rd2 {[%clk 0:00:30]}  Kf4 {[%clk 0:00:09]} 54. Rdxc2 {[%clk 0:00:30]}  Rd3 {[%clk 0:00:09]} 55. Rc4+ {[%clk 0:00:29]}  Kf5 {[%clk 0:00:10]} 56. R1c3 {[%clk 0:00:30]}  Rd2 {[%clk 0:00:10]} 57. Rf3+ {[%clk 0:00:30]}  Kg6 {[%clk 0:00:10]} 58. Rc6+ {[%clk 0:00:29]}  Kh5 {[%clk 0:00:10]} 59. Rff6 {[%clk 0:00:29]}  g4 {[%clk 0:00:11]} 60. Rxh6+ {[%clk 0:00:29]}  Kg5 {[%clk 0:00:11]} 61. Rcg6+ {[%clk 0:00:29]}  Kf5 {[%clk 0:00:12]} 62. hxg4+ {[%clk 0:00:29]}  Kf4 {[%clk 0:00:12]} 63. Rg8 {[%clk 0:00:19]}  Rd3 {[%clk 0:00:13]} 64. Rf6+ {[%clk 0:00:18]}  Ke5 {[%clk 0:00:13]} 65. Rf5+ {[%clk 0:00:18]}  Ke4 {[%clk 0:00:13]} 66. f3+ {[%clk 0:00:18]}  Ke3 {[%clk 0:00:13]} 67. Re8+ {[%clk 0:00:19]}  Kd2 {[%clk 0:00:13]} 68. Ree5 {[%clk 0:00:19]}  Kc2 {[%clk 0:00:13]} 69. Rd5 {[%clk 0:00:19]}  Ra3 {[%clk 0:00:14]} 70. g5 {[%clk 0:00:19]}  Kc1 {[%clk 0:00:14]} 71. g6 {[%clk 0:00:19]}  Ra2+ {[%clk 0:00:15]} 72. Kg3 {[%clk 0:00:19]}  Ra6 {[%clk 0:00:15]} 73. Rg5 {[%clk 0:00:19]}  Ra8 {[%clk 0:00:15]} 74. g7 {[%clk 0:00:19]}  Rg8 {[%clk 0:00:16]} 75. Rdf5 {[%clk 0:00:20]}  Kd2 {[%clk 0:00:16]} 76. Rf8 {[%clk 0:00:20]} 1-0


[Site "https://www.chess.com"]

[Event "Titled Tuesday Blitz August 10 2021"]
[White "Terry, Renato"]
[Black "Nagy, Gabor"]
[WhiteFideId "3803457"]
[BlackFideId "737119"]
[WhiteElo "2581"]
[BlackElo "2562"]
[Result "1-0"]
[Round "11"]
[TimeControl "180+1"]
[Date "2021.08.10"]
[WhiteClock "0:00:47"]
[BlackClock "0:01:22"]

1. e4 {[%clk 0:03:00]}  e5 {[%clk 0:02:58]} 2. Nf3 {[%clk 0:03:01]}  Nc6 {[%clk 0:02:59]} 3. c3 {[%clk 0:03:01]}  Nf6 {[%clk 0:02:56]} 4. d4 {[%clk 0:03:01]}  Nxe4 {[%clk 0:02:55]} 5. d5 {[%clk 0:03:02]}  Ne7 {[%clk 0:02:56]} 6. Nxe5 {[%clk 0:03:02]}  Ng6 {[%clk 0:02:53]} 7. Nxg6 {[%clk 0:03:02]}  hxg6 {[%clk 0:02:54]} 8. Bd3 {[%clk 0:03:02]}  Nf6 {[%clk 0:02:51]} 9. c4 {[%clk 0:03:02]}  Bd6 {[%clk 0:02:49]} 10. Nc3 {[%clk 0:02:55]}  c6 {[%clk 0:02:48]} 11. Qe2+ {[%clk 0:02:48]}  Kf8 {[%clk 0:02:45]} 12. Bg5 {[%clk 0:02:38]}  Qa5 {[%clk 0:02:35]} 13. Bd2 {[%clk 0:02:19]}  Qb6 {[%clk 0:02:31]} 14. O-O-O {[%clk 0:02:16]}  cxd5 {[%clk 0:02:28]} 15. cxd5 {[%clk 0:02:16]}  a5 {[%clk 0:02:25]} 16. Be3 {[%clk 0:02:06]}  Bc5 {[%clk 0:02:18]} 17. Kb1 {[%clk 0:01:50]}  Bxe3 {[%clk 0:02:17]} 18. fxe3 {[%clk 0:01:51]}  d6 {[%clk 0:02:17]} 19. h3 {[%clk 0:01:49]}  a4 {[%clk 0:02:15]} 20. a3 {[%clk 0:01:49]}  Bd7 {[%clk 0:02:13]} 21. Rhf1 {[%clk 0:01:44]}  Rc8 {[%clk 0:02:12]} 22. Rc1 {[%clk 0:01:39]}  Rh5 {[%clk 0:02:08]} 23. e4 {[%clk 0:01:31]}  Re5 {[%clk 0:02:06]} 24. Qf3 {[%clk 0:01:25]}  g5 {[%clk 0:02:00]} 25. Ka1 {[%clk 0:01:04]}  Qa5 {[%clk 0:01:57]} 26. Qf2 {[%clk 0:00:57]}  Kg8 {[%clk 0:01:50]} 27. h4 {[%clk 0:00:54]}  gxh4 {[%clk 0:01:48]} 28. Qxh4 {[%clk 0:00:55]}  b5 {[%clk 0:01:47]} 29. Rxf6 {[%clk 0:00:48]}  gxf6 {[%clk 0:01:45]} 30. Rh1 {[%clk 0:00:48]}  Kg7 {[%clk 0:01:23]} 31. Qh6+ {[%clk 0:00:47]}  Kg8 {[%clk 0:01:22]} 32. Qh8# {[%clk 0:00:47]} 1-0


[Site "https://www.chess.com"]

[Event "Titled Tuesday Blitz August 10 2021"]
[White "To, Nhat Minh"]
[Black "Quispe Arteaga, Gabriel"]
[WhiteFideId "729019"]
[BlackFideId "32059809"]
[WhiteElo "2412"]
[BlackElo "2172"]
[Result "1-0"]
[Round "11"]
[TimeControl "180+1"]
[Date "2021.08.10"]
[WhiteClock "0:00:04"]
[BlackClock "0:00:10"]

1. d4 {[%clk 0:03:00]}  Nf6 {[%clk 0:03:00]} 2. c4 {[%clk 0:03:01]}  e6 {[%clk 0:03:00]} 3. Nf3 {[%clk 0:03:00]}  Bb4+ {[%clk 0:03:00]} 4. Bd2 {[%clk 0:03:00]}  Qe7 {[%clk 0:03:00]} 5. g3 {[%clk 0:02:58]}  O-O {[%clk 0:03:00]} 6. Nc3 {[%clk 0:02:58]}  b6 {[%clk 0:02:58]} 7. Bg2 {[%clk 0:02:58]}  Bb7 {[%clk 0:02:59]} 8. O-O {[%clk 0:02:58]}  d6 {[%clk 0:02:58]} 9. Rc1 {[%clk 0:02:51]}  Nbd7 {[%clk 0:02:57]} 10. d5 {[%clk 0:02:42]}  Bxc3 {[%clk 0:02:54]} 11. Bxc3 {[%clk 0:02:43]}  exd5 {[%clk 0:02:52]} 12. Nh4 {[%clk 0:02:40]}  Qe6 {[%clk 0:02:40]} 13. Bxf6 {[%clk 0:02:34]}  Nxf6 {[%clk 0:02:37]} 14. cxd5 {[%clk 0:02:35]}  Bxd5 {[%clk 0:02:34]} 15. Rxc7 {[%clk 0:02:28]}  Bxg2 {[%clk 0:02:34]} 16. Nxg2 {[%clk 0:02:25]}  Qxa2 {[%clk 0:02:34]} 17. Qa1 {[%clk 0:02:17]}  Qb3 {[%clk 0:02:11]} 18. Rd1 {[%clk 0:02:09]}  Rfe8 {[%clk 0:02:10]} 19. Nf4 {[%clk 0:01:55]}  g5 {[%clk 0:02:04]} 20. Rd3 {[%clk 0:01:42]}  Qb5 {[%clk 0:01:22]} 21. b3 {[%clk 0:01:40]}  Qe5 {[%clk 0:01:08]} 22. Qxe5 {[%clk 0:01:32]}  Rxe5 {[%clk 0:01:06]} 23. Nh3 {[%clk 0:01:20]}  h6 {[%clk 0:00:59]} 24. f4 {[%clk 0:01:09]}  Rxe2 {[%clk 0:00:55]} 25. fxg5 {[%clk 0:01:09]}  Ng4 {[%clk 0:00:42]} 26. gxh6 {[%clk 0:00:42]}  Rae8 {[%clk 0:00:42]} 27. h7+ {[%clk 0:00:36]}  Kg7 {[%clk 0:00:37]} 28. Ng5 {[%clk 0:00:14]}  Rxh2 {[%clk 0:00:37]} 29. Rxf7+ {[%clk 0:00:13]}  Kg6 {[%clk 0:00:38]} 30. Nf3 {[%clk 0:00:08]}  Rxh7 {[%clk 0:00:29]} 31. Rf4 {[%clk 0:00:06]}  Ne5 {[%clk 0:00:17]} 32. Rxd6+ {[%clk 0:00:06]}  Kg7 {[%clk 0:00:17]} 33. Nxe5 {[%clk 0:00:05]}  Rxe5 {[%clk 0:00:18]} 34. Rd7+ {[%clk 0:00:04]}  Kg8 {[%clk 0:00:16]} 35. Rg4+ {[%clk 0:00:04]}  Kf8 {[%clk 0:00:10]} 36. Rxh7 {[%clk 0:00:04]} 1-0


[Site "https://www.chess.com"]

[Event "Titled Tuesday Blitz August 10 2021"]
[White "Urazayev, Arystanbek"]
[Black "Williams, Simon K"]
[WhiteFideId "13709810"]
[BlackFideId "404454"]
[WhiteElo "2321"]
[BlackElo "2468"]
[Result "1-0"]
[Round "11"]
[TimeControl "180+1"]
[Date "2021.08.10"]
[WhiteClock "0:01:48"]
[BlackClock "0:00:05"]

1. e4 {[%clk 0:03:00]}  c5 {[%clk 0:02:58]} 2. Nf3 {[%clk 0:03:01]}  d6 {[%clk 0:02:58]} 3. d4 {[%clk 0:03:02]}  cxd4 {[%clk 0:02:57]} 4. Nxd4 {[%clk 0:03:03]}  Nf6 {[%clk 0:02:58]} 5. Nc3 {[%clk 0:03:03]}  g6 {[%clk 0:02:58]} 6. Be2 {[%clk 0:03:03]}  Bg7 {[%clk 0:02:56]} 7. O-O {[%clk 0:03:03]}  O-O {[%clk 0:02:55]} 8. Be3 {[%clk 0:03:04]}  a6 {[%clk 0:02:51]} 9. a4 {[%clk 0:03:03]}  Qc7 {[%clk 0:02:36]} 10. Qd2 {[%clk 0:03:02]}  b6 {[%clk 0:02:34]} 11. Nd5 {[%clk 0:02:55]}  Nxd5 {[%clk 0:02:34]} 12. exd5 {[%clk 0:02:56]}  Bb7 {[%clk 0:02:33]} 13. c4 {[%clk 0:02:57]}  Nd7 {[%clk 0:02:25]} 14. a5 {[%clk 0:02:57]}  Rfb8 {[%clk 0:01:21]} 15. b4 {[%clk 0:02:53]}  b5 {[%clk 0:01:05]} 16. cxb5 {[%clk 0:02:49]}  Bxd5 {[%clk 0:01:04]} 17. b6 {[%clk 0:02:49]}  Qb7 {[%clk 0:01:02]} 18. Rac1 {[%clk 0:02:44]}  Rc8 {[%clk 0:00:59]} 19. Bf3 {[%clk 0:02:23]}  Bxf3 {[%clk 0:00:56]} 20. Nxf3 {[%clk 0:02:22]}  Ne5 {[%clk 0:00:50]} 21. Nxe5 {[%clk 0:02:22]}  Bxe5 {[%clk 0:00:49]} 22. Rxc8+ {[%clk 0:02:23]}  Rxc8 {[%clk 0:00:49]} 23. Rc1 {[%clk 0:02:23]}  Rxc1+ {[%clk 0:00:37]} 24. Qxc1 {[%clk 0:02:24]}  d5 {[%clk 0:00:38]} 25. f4 {[%clk 0:02:14]}  Bd6 {[%clk 0:00:38]} 26. Bc5 {[%clk 0:02:13]}  Qc6 {[%clk 0:00:36]} 27. Qe3 {[%clk 0:02:12]}  h5 {[%clk 0:00:20]} 28. Bxd6 {[%clk 0:02:11]}  exd6 {[%clk 0:00:20]} 29. h4 {[%clk 0:02:09]}  Kg7 {[%clk 0:00:19]} 30. Qd4+ {[%clk 0:02:09]}  Kh7 {[%clk 0:00:19]} 31. Kh2 {[%clk 0:02:03]}  Kg8 {[%clk 0:00:19]} 32. f5 {[%clk 0:02:03]}  gxf5 {[%clk 0:00:18]} 33. Qf4 {[%clk 0:02:02]}  Qd7 {[%clk 0:00:15]} 34. Qg5+ {[%clk 0:02:01]}  Kf8 {[%clk 0:00:15]} 35. Qf6 {[%clk 0:02:00]}  Ke8 {[%clk 0:00:10]} 36. Qh8+ {[%clk 0:01:56]}  Ke7 {[%clk 0:00:10]} 37. Qxh5 {[%clk 0:01:54]}  Qe6 {[%clk 0:00:10]} 38. Qg5+ {[%clk 0:01:54]}  Kd7 {[%clk 0:00:10]} 39. Qc1 {[%clk 0:01:50]}  Qe5+ {[%clk 0:00:09]} 40. Kh1 {[%clk 0:01:50]}  d4 {[%clk 0:00:08]} 41. b7 {[%clk 0:01:48]}  d5 {[%clk 0:00:05]} 42. Qc8+ {[%clk 0:01:47]}  Ke7 {[%clk 0:00:05]} 43. b8=Q {[%clk 0:01:48]} 1-0


[Site "https://www.chess.com"]

[Event "Titled Tuesday Blitz August 10 2021"]
[White "Vokhidov, Shamsiddin"]
[Black "Goryachkina, Aleksandra"]
[WhiteFideId "14204223"]
[BlackFideId "4147103"]
[WhiteElo "2572"]
[BlackElo "2441"]
[Result "1-0"]
[Round "11"]
[TimeControl "180+1"]
[Date "2021.08.10"]
[WhiteClock "0:01:54"]
[BlackClock "0:00:04"]

1. e4 {[%clk 0:03:00]}  c5 {[%clk 0:02:59]} 2. Nf3 {[%clk 0:03:01]}  Nc6 {[%clk 0:03:00]} 3. Bb5 {[%clk 0:03:00]}  e6 {[%clk 0:02:58]} 4. Bxc6 {[%clk 0:03:00]}  bxc6 {[%clk 0:02:58]} 5. d3 {[%clk 0:03:01]}  Ne7 {[%clk 0:02:57]} 6. Qe2 {[%clk 0:03:02]}  d6 {[%clk 0:02:52]} 7. e5 {[%clk 0:03:01]}  Ng6 {[%clk 0:02:51]} 8. Nc3 {[%clk 0:02:59]}  d5 {[%clk 0:02:38]} 9. b3 {[%clk 0:02:57]}  Be7 {[%clk 0:02:30]} 10. Na4 {[%clk 0:02:56]}  O-O {[%clk 0:02:28]} 11. h4 {[%clk 0:02:52]}  f6 {[%clk 0:02:21]} 12. h5 {[%clk 0:02:52]}  Nxe5 {[%clk 0:02:18]} 13. Nxe5 {[%clk 0:02:53]}  fxe5 {[%clk 0:02:17]} 14. Bb2 {[%clk 0:02:54]}  d4 {[%clk 0:02:14]} 15. h6 {[%clk 0:02:53]}  Qd5 {[%clk 0:02:01]} 16. hxg7 {[%clk 0:02:52]}  Rf7 {[%clk 0:02:01]} 17. O-O-O {[%clk 0:02:51]}  Rxg7 {[%clk 0:01:53]} 18. Rh5 {[%clk 0:02:49]}  Bg5+ {[%clk 0:01:31]} 19. Kb1 {[%clk 0:02:47]}  Ba6 {[%clk 0:01:30]} 20. Ba3 {[%clk 0:02:45]}  e4 {[%clk 0:01:02]} 21. Nxc5 {[%clk 0:02:42]}  exd3 {[%clk 0:00:56]} 22. Qxe6+ {[%clk 0:02:38]}  Qxe6 {[%clk 0:00:55]} 23. Nxe6 {[%clk 0:02:39]}  dxc2+ {[%clk 0:00:52]} 24. Kxc2 {[%clk 0:02:40]}  d3+ {[%clk 0:00:52]} 25. Kb1 {[%clk 0:02:37]}  h6 {[%clk 0:00:37]} 26. Nxg7 {[%clk 0:02:35]}  Kxg7 {[%clk 0:00:37]} 27. Bc1 {[%clk 0:02:31]}  d2 {[%clk 0:00:23]} 28. Bxd2 {[%clk 0:02:20]}  Be2 {[%clk 0:00:18]} 29. Bxg5 {[%clk 0:02:15]}  Bxh5 {[%clk 0:00:15]} 30. Rd7+ {[%clk 0:02:15]}  Kg6 {[%clk 0:00:15]} 31. Be3 {[%clk 0:02:16]}  Rf8 {[%clk 0:00:10]} 32. Rd6+ {[%clk 0:02:15]}  Rf6 {[%clk 0:00:10]} 33. Rxf6+ {[%clk 0:02:15]}  Kxf6 {[%clk 0:00:11]} 34. Bxa7 {[%clk 0:02:14]}  Be2 {[%clk 0:00:10]} 35. Kb2 {[%clk 0:02:12]}  h5 {[%clk 0:00:09]} 36. g3 {[%clk 0:02:11]}  Ke5 {[%clk 0:00:09]} 37. Kc3 {[%clk 0:02:10]}  Kd5 {[%clk 0:00:09]} 38. Kd2 {[%clk 0:02:10]}  Ba6 {[%clk 0:00:08]} 39. a4 {[%clk 0:02:06]}  Ke4 {[%clk 0:00:06]} 40. Kc3 {[%clk 0:02:04]}  Bf1 {[%clk 0:00:06]} 41. Kb4 {[%clk 0:02:03]}  Kd5 {[%clk 0:00:06]} 42. Ka5 {[%clk 0:02:03]}  Be2 {[%clk 0:00:05]} 43. Kb6 {[%clk 0:01:54]}  Bd1 {[%clk 0:00:05]} 44. a5 {[%clk 0:01:55]}  Bxb3 {[%clk 0:00:06]} 45. a6 {[%clk 0:01:55]}  c5 {[%clk 0:00:04]} 46. Bb8 {[%clk 0:01:55]}  c4 {[%clk 0:00:04]} 47. a7 {[%clk 0:01:54]} 1-0